Body Name,Body,Supplier Name,Spending Service,Nature of Spend,Ledger Date,Invoice Reference,Net Amount (excluding VAT)
Lancaster City Council,30UH,4imprint.co.uk,Environmental Services,Materials - General                     ,27/02/2012,13237,679
Lancaster City Council,30UH,A G Electrics,Health & Housing,Contracted Services                     ,09/02/2012,91249,885
Lancaster City Council,30UH,A G Electrics,Health & Housing,Contracted Services                     ,09/02/2012,91249,600
Lancaster City Council,30UH,A G Electrics,Health & Housing,Contracted Services                     ,15/02/2012,91250,700
Lancaster City Council,30UH,A G Electrics,Health & Housing,Contracted Services                     ,15/02/2012,91250,500
Lancaster City Council,30UH,A.A.M. Services Limited,Property Services,R & M - Buildings                       ,07/02/2012,6642,2240
Lancaster City Council,30UH,A1 Supaskips Ltd,Environmental Services,Services - Waste Disposal               ,07/02/2012,43967,515
Lancaster City Council,30UH,A1 Supaskips Ltd,Environmental Services,Services - Waste Disposal               ,21/02/2012,44227,772.5
Lancaster City Council,30UH,Active Training Network,Community Engagement,Service Training Budget                 ,28/02/2012,2011 - 2012 ATN / A5,575
Lancaster City Council,30UH,Advance Security (UK) Ltd,Environmental Services,Security Services                       ,06/02/2012,CO050594,6323.73
Lancaster City Council,30UH,Age UK Lancashire,Financial Services,Grants                                  ,09/02/2012,Q3 11/12,4595.74
Lancaster City Council,30UH,Age UK Lancashire,Financial Services,Grants                                  ,09/02/2012,Q3&4 10/11,16510
Lancaster City Council,30UH,Age UK Lancashire,Financial Services,Grants                                  ,09/02/2012,Solutions 10/11 Q4,5880
Lancaster City Council,30UH,Allied (Lancaster) Limited,Property Services,Rent                                    ,16/02/2012,317,6138.03
Lancaster City Council,30UH,Ambec Construction Ltd,Regeneration and Policy,Capital Payments To Contractors         ,01/02/2012,1976,9463.66
Lancaster City Council,30UH,Amberol Ltd.,Environmental Services,R & M - General                         ,06/02/2012,9340,1283.55
Lancaster City Council,30UH,Anchor Flooring Limited,Environmental Services,Capital Payments To Contractors         ,10/02/2012,AF/3606,539
Lancaster City Council,30UH,Anchor Flooring Limited,Health & Housing,Contracted Services                     ,23/02/2012,AF/3604,992
Lancaster City Council,30UH,Anglo Espanol Ltd t/a Plastech Windows,Health & Housing,Contracted Services                     ,23/02/2012,181,708.33
Lancaster City Council,30UH,Anglo Espanol Ltd t/a Plastech Windows,Environmental Services,Materials - General                     ,28/02/2012,83,1625
Lancaster City Council,30UH,Appliance Direct,Health & Housing,Capital Payments To Contractors         ,03/02/2012,12991,629.15
Lancaster City Council,30UH,APSE,Environmental Services,Services - Consultants                  ,06/02/2012,1112/1832,1120.88
Lancaster City Council,30UH,APSE,Environmental Services,Services - Consultants                  ,08/02/2012,1112/1904,1351.8
Lancaster City Council,30UH,Aquila Design,Regeneration and Policy,R & M - General                         ,08/02/2012,INV000053,8406.72
Lancaster City Council,30UH,Arnside and District Natural History Society,Regeneration and Policy,Grants                                  ,08/02/2012,ANHS/SDF1,900
Lancaster City Council,30UH,Associated Training Services,Environmental Services,Service Training Budget                 ,22/02/2012,1774,510
Lancaster City Council,30UH,ATS Euromaster Ltd,Environmental Services,Repair & Mtce Of Vehicles               ,08/02/2012,78916,2888.58
Lancaster City Council,30UH,BACPR Education,Community Engagement,Training Allowances                     ,13/02/2012,3434-5/London/02/12,1250
Lancaster City Council,30UH,Bay Scaffolding Ltd,Environmental Services,Other Construction Costs                ,06/02/2012,6809,850
Lancaster City Council,30UH,Bay Scaffolding Ltd,Environmental Services,Materials - General                     ,24/02/2012,6871,550
Lancaster City Council,30UH,BemroseBooth Ltd,Property Services,Printing & Stationery                   ,14/02/2012,3/ 516018,640
Lancaster City Council,30UH,BioBag Limited,Environmental Services,Printing & Stationery                   ,06/02/2012,2566,544
Lancaster City Council,30UH,Blunderbus Theatre Co Ltd,Community Engagement,Exhibitions & Events - Guarantees       ,07/02/2012,5187,550
Lancaster City Council,30UH,British Gas Business,Community Engagement,Electricity                             ,14/02/2012,53349889/1,586.62
Lancaster City Council,30UH,British Gas Business,Community Engagement,Electricity                             ,23/02/2012,53351644/1,657.64
Lancaster City Council,30UH,British Gas Business,Community Engagement,Gas                                     ,24/02/2012,53390479/1,8724.96
Lancaster City Council,30UH,British Gas Business,Property Services,Gas                                     ,27/02/2012,53390508/1,2103.17
Lancaster City Council,30UH,British Gas Business,Environmental Services,Gas                                     ,28/02/2012,53390473/1,840.24
Lancaster City Council,30UH,British Gas Business,Environmental Services,Gas                                     ,28/02/2012,53390512/1,1061.26
Lancaster City Council,30UH,British Gas Business,Health & Housing,Gas                                     ,29/02/2012,53390472/1,521.69
Lancaster City Council,30UH,British Gas Business,Health & Housing,Gas                                     ,29/02/2012,53390476/1,2120.54
Lancaster City Council,30UH,British Gas Business,Health & Housing,Gas                                     ,29/02/2012,53390477/1,1955.35
Lancaster City Council,30UH,British Gas Business,Health & Housing,Gas                                     ,29/02/2012,53390478/1,2279.79
Lancaster City Council,30UH,British Gas Business,Health & Housing,Gas                                     ,29/02/2012,53390504/1,605.08
Lancaster City Council,30UH,British Gas Business,Health & Housing,Gas                                     ,29/02/2012,53390505/1,1437.04
Lancaster City Council,30UH,British Gas Business,Health & Housing,Gas                                     ,29/02/2012,53390506/1,2041.05
Lancaster City Council,30UH,British Gas Business,Property Services,Gas                                     ,29/02/2012,53389950/1,531.45
Lancaster City Council,30UH,British Gas Business,Property Services,Gas                                     ,29/02/2012,53390502/1,737.34
Lancaster City Council,30UH,British Gas Business,Property Services,Gas                                     ,29/02/2012,53390507/1,4987.19
Lancaster City Council,30UH,British Telecommunications plc,Information Services,Telephones                              ,02/02/2012,VP70661270Q03201 L2,3895.57
Lancaster City Council,30UH,British Telecommunications plc,Information Services,Telephones                              ,08/02/2012,VP 70661270 Q03301,3578.47
Lancaster City Council,30UH,Broxap Ltd,Environmental Services,R & M - General                         ,27/02/2012,INV088017,1106
Lancaster City Council,30UH,Burnley Borough Council,Community Engagement,Printing & Stationery                   ,08/02/2012,13038,570
Lancaster City Council,30UH,C R Taylor Timber Ltd,Environmental Services,White Lund Stock                        ,15/02/2012,261636,792
Lancaster City Council,30UH,Cable&Wireless UK,Information Services,Telephones                              ,02/02/2012,10899186,1888.16
Lancaster City Council,30UH,Cable&Wireless UK,Information Services,Data Line Rental                        ,08/02/2012,UK10/022012/9911,1933.33
Lancaster City Council,30UH,Cable&Wireless UK,Information Services,Line Rental - Members                   ,15/02/2012,B1-16221010,975.12
Lancaster City Council,30UH,CAD Capture,Regeneration and Policy,R & M - Sea & River / Promenade         ,03/02/2012,CD10907,2496.41
Lancaster City Council,30UH,Capita Symonds Ltd,Health & Housing,Capital Payments To Contractors         ,07/02/2012,92340272,1982.32
Lancaster City Council,30UH,Capita Symonds Ltd,Health & Housing,Capital Payments To Contractors         ,29/02/2012,92378283,1346.47
Lancaster City Council,30UH,Capita Symonds Ltd,Regeneration and Policy,Services - Consultants                  ,29/02/2012,92378172,567.41
Lancaster City Council,30UH,Carnforth & District Chamber of Trade,Regeneration and Policy,Services - General                      ,06/02/2012,31/01/2012,1500
Lancaster City Council,30UH,CEMEX UK Materials Ltd,Environmental Services,Materials - General                     ,06/02/2012,3004889303,762.44
Lancaster City Council,30UH,Civica UK Limited,Financial Services,Software Finance Suite                  ,16/02/2012,C/IC107766,-9000
Lancaster City Council,30UH,Civica UK Limited,Financial Services,Software Finance Suite                  ,16/02/2012,M/FS008759,816.67
Lancaster City Council,30UH,Clarity Credit Management,Environmental Services,Gas                                     ,13/02/2012,13090,893.58
Lancaster City Council,30UH,Cleanall Services Ltd.,Property Services,Other Cleaning                          ,20/02/2012,17697,6048.42
Lancaster City Council,30UH,Coastal Engineering UK Ltd,Regeneration and Policy,Capital Payments To Contractors         ,23/02/2012,1152,625
Lancaster City Council,30UH,Concept Promotions,Community Engagement,Equipment and Tools - General           ,08/02/2012,1891/2012,1620
Lancaster City Council,30UH,Consilium Technologies Ltd,Environmental Services,Software Miscellaneous                  ,20/02/2012,15997,5828.58
Lancaster City Council,30UH,Container Care Solutions,Environmental Services,Materials For Resale                    ,21/02/2012,2671,880
Lancaster City Council,30UH,Co-Operative Funeral Service,Health & Housing,Services - Burial Of The Dead           ,22/02/2012,F45362-01557,1151.75
Lancaster City Council,30UH,Corona Energy,Community Engagement,Gas                                     ,27/02/2012,13226,1433.29
Lancaster City Council,30UH,Craig Jury Plant and Tool repairs,Regeneration and Policy,R & M - Buildings                       ,03/02/2012,1722,1120
Lancaster City Council,30UH,Craig Jury Plant and Tool repairs,Environmental Services,R & M - Buildings                       ,06/02/2012,1723,600
Lancaster City Council,30UH,Craig Jury Plant and Tool repairs,Regeneration and Policy,R & M - Sea & River / Promenade         ,07/02/2012,1725,1028
Lancaster City Council,30UH,Cyclescheme Limited,Financial Services,Purchase of Cycles                      ,02/02/2012,W135255,583.33
Lancaster City Council,30UH,Cyclescheme Limited,Financial Services,Purchase of Cycles                      ,23/02/2012,W137117,774.98
Lancaster City Council,30UH,Danfo (UK) Limited,Environmental Services,Services - General                      ,20/02/2012,551,-3345.38
Lancaster City Council,30UH,Danfo (UK) Limited,Environmental Services,Services - General                      ,20/02/2012,2062,13053.33
Lancaster City Council,30UH,Dave Wilson Developments,Health & Housing,Capital Grants                          ,02/02/2012,DFG,670
Lancaster City Council,30UH,Deltawaite Ltd,Environmental Services,White Lund Stock                        ,22/02/2012,641,1482.25
Lancaster City Council,30UH,Dennis Eagle Ltd,Environmental Services,Repair & Mtce Of Vehicles               ,29/02/2012,DE10611109,885.23
Lancaster City Council,30UH,E.Lynch & Sons,Property Services,R & M - Buildings                       ,07/02/2012,7885,4257.53
Lancaster City Council,30UH,E.ON,Regeneration and Policy,Electricity                             ,01/02/2012,HC96346ED,1102.46
Lancaster City Council,30UH,E.ON,Regeneration and Policy,Electricity                             ,09/02/2012,HC9949FDE,1844.48
Lancaster City Council,30UH,E.ON,Regeneration and Policy,Electricity                             ,09/02/2012,HC9C4DDD1,688.53
Lancaster City Council,30UH,E.ON,Environmental Services,Electricity                             ,10/02/2012,400397435,1540.44
Lancaster City Council,30UH,E.ON,Property Services,Electricity                             ,14/02/2012,HCA00120E,657.74
Lancaster City Council,30UH,E.ON,Environmental Services,Electricity                             ,29/02/2012,HC256C96A,566.23
Lancaster City Council,30UH,Earlsmere Limited,Health & Housing,Equipment and Tools - General           ,20/02/2012,49410,500
Lancaster City Council,30UH,Earlsmere Limited,Environmental Services,Materials - General                     ,28/02/2012,49413,2405.7
Lancaster City Council,30UH,Edmundson Electrical Ltd,Environmental Services,Capital Payments To Contractors         ,06/02/2012,51098,1127.1
Lancaster City Council,30UH,Edmundson Electrical Ltd,Environmental Services,Other Construction Costs                ,06/02/2012,826051,560
Lancaster City Council,30UH,Edmundson Electrical Ltd,Environmental Services,Other Construction Costs                ,20/02/2012,51695,580
Lancaster City Council,30UH,Electric Center,Environmental Services,White Lund Stock                        ,15/02/2012,I5381496,845
Lancaster City Council,30UH,Electric Center,Environmental Services,White Lund Stock                        ,23/02/2012,I5430554,1352
Lancaster City Council,30UH,Electro-Tech CP Ltd,Property Services,R & M - Buildings                       ,07/02/2012,2019,620.45
Lancaster City Council,30UH,EMCOR Engineering Services Ltd,Health & Housing,Capital Payments To Contractors         ,21/02/2012,MCO1004006,46327.12
Lancaster City Council,30UH,EMCOR Engineering Services Ltd,Health & Housing,Capital Payments To Contractors         ,23/02/2012,MCO1004007,41460.55
Lancaster City Council,30UH,Emo Oil Ltd,Environmental Services,White Lund Stock                        ,20/02/2012,7260681,25599.01
Lancaster City Council,30UH,Emo Oil Ltd,Environmental Services,White Lund Stock                        ,20/02/2012,7337196,25083.83
Lancaster City Council,30UH,Envirovent Ltd,Financial Services,Contracted Services                     ,06/02/2012,75433,699
Lancaster City Council,30UH,Envirovent Ltd,Financial Services,Contracted Services                     ,06/02/2012,75759,531.74
Lancaster City Council,30UH,Envirovent Ltd,Financial Services,Contracted Services                     ,06/02/2012,20011,-531.74
Lancaster City Council,30UH,Envirovent Ltd,Financial Services,Contracted Services                     ,06/02/2012,20012,-699
Lancaster City Council,30UH,Envirovent Ltd,Health & Housing,Contracted Services                     ,09/02/2012,76730,811.39
Lancaster City Council,30UH,ESE Ltd,Environmental Services,Equipment and Tools - General           ,08/02/2012,6678810,1350
Lancaster City Council,30UH,Eversheds LLP,Regeneration and Policy,External Professional Fees              ,09/02/2012,90979301,6233.7
Lancaster City Council,30UH,Fawcetts Ltd,Health & Housing,Contracted Services                     ,29/02/2012,10527,850
Lancaster City Council,30UH,Festival Lights,Regeneration and Policy,Services - General                      ,20/02/2012,73900743424,22272
Lancaster City Council,30UH,Fire Safety Solutions Ltd,Property Services,R & M - Buildings                       ,29/02/2012,FSS-I788,540
Lancaster City Council,30UH,Fisher Wrathall,Health & Housing,Homelessness Priority Need Order        ,06/02/2012,Prev fund,500
Lancaster City Council,30UH,FlatRoofing Systems,Property Services,Capital Payments To Contractors         ,03/02/2012,7993,4901.39
Lancaster City Council,30UH,FlatRoofing Systems,Property Services,R & M - Buildings                       ,07/02/2012,7982,567
Lancaster City Council,30UH,FlatRoofing Systems,Property Services,R & M - Buildings                       ,07/02/2012,7983,691
Lancaster City Council,30UH,FT Leisure Limited,Community Engagement,Other Fixed Plant                       ,28/02/2012,1046,2650
Lancaster City Council,30UH,G & G Signs,Environmental Services,R & M - General                         ,22/02/2012,16214,836
Lancaster City Council,30UH,G. Robertson (Lancaster) Ltd,Property Services,R & M - Buildings                       ,23/02/2012,19470,541
Lancaster City Council,30UH,G.W. Resources,Governance,Corporate Training Budget               ,02/02/2012,612,653
Lancaster City Council,30UH,Gardners Tiles Ltd,Environmental Services,Other Construction Costs                ,20/02/2012,1031,1403.65
Lancaster City Council,30UH,Gelpack Excelsior Ltd,Environmental Services,White Lund Stock                        ,23/02/2012,SINV-045895,1746
Lancaster City Council,30UH,Glasdon U.K. Ltd,Environmental Services,Equipment and Tools - General           ,06/02/2012,618892,2997.68
Lancaster City Council,30UH,Glasdon U.K. Ltd,Environmental Services,Playground Improvements                 ,28/02/2012,620560,2541.7
Lancaster City Council,30UH,Greenham Trading Limited,Environmental Services,White Lund Stock                        ,08/02/2012,11/091865,925
Lancaster City Council,30UH,Greenham Trading Limited,Environmental Services,White Lund Stock                        ,17/02/2012,11/096458,990
Lancaster City Council,30UH,Haffner Orchestra,Community Engagement,Concerts - General                      ,16/02/2012,130212,650.75
Lancaster City Council,30UH,Heil Europe,Environmental Services,Purchase Of Vehicles Etc                ,23/02/2012,65517,1801
Lancaster City Council,30UH,Heil Europe,Environmental Services,Purchase Of Vehicles Etc                ,23/02/2012,65517,63250
Lancaster City Council,30UH,Heil Europe,Environmental Services,Purchase Of Vehicles Etc                ,23/02/2012,65517,24000
Lancaster City Council,30UH,Heil Europe,Environmental Services,Purchase Of Vehicles Etc                ,23/02/2012,65517,3536
Lancaster City Council,30UH,Heil Europe,Environmental Services,Purchase Of Vehicles Etc                ,23/02/2012,65517,70543
Lancaster City Council,30UH,Heil Europe,Environmental Services,Vehicle Licences                        ,23/02/2012,c/v3579,705
Lancaster City Council,30UH,Herbert T. Forrest Ltd,Health & Housing,Capital Payments To Contractors         ,16/02/2012,080068-3,31394.79
Lancaster City Council,30UH,Herbert T. Forrest Ltd,Health & Housing,Capital Payments To Contractors         ,23/02/2012,011486-4,69434.63
Lancaster City Council,30UH,Herbert T. Forrest Ltd,Health & Housing,Capital Payments To Contractors         ,29/02/2012,080068-4,3007.41
Lancaster City Council,30UH,Heysham High School,Community Engagement,Gas                                     ,06/02/2012,IN045432,2185.73
Lancaster City Council,30UH,Hodges North West Ltd,Health & Housing,Capital Grants                          ,08/02/2012,DFG,2108
Lancaster City Council,30UH,Hodges North West Ltd,Health & Housing,Capital Grants                          ,29/02/2012,DFG,3316.43
Lancaster City Council,30UH,Honeywell Control Systems Ltd,Property Services,R & M - Buildings                       ,07/02/2012,5200572639,1299.68
Lancaster City Council,30UH,Honeywell Control Systems Ltd,Property Services,R & M - Buildings                       ,07/02/2012,5200572645,1121.45
Lancaster City Council,30UH,Honeywell Control Systems Ltd,Property Services,R & M - Buildings                       ,07/02/2012,5200573871,3002.5
Lancaster City Council,30UH,Honeywell Control Systems Ltd,Property Services,R & M - Buildings                       ,23/02/2012,5200592248,1541.35
Lancaster City Council,30UH,Honeywell Control Systems Ltd,Property Services,R & M - Buildings                       ,29/02/2012,5200572643,1052.55
Lancaster City Council,30UH,Horton Automatics Limited,Property Services,R & M - Buildings                       ,07/02/2012,4035624,1422.8
Lancaster City Council,30UH,Howdens Joinery Co,Environmental Services,Materials - General                     ,20/02/2012,D61/0026583,862.36
Lancaster City Council,30UH,Howdens Joinery Co,Environmental Services,Materials - General                     ,20/02/2012,D61/0026883,919.66
Lancaster City Council,30UH,Howdens Joinery Co,Environmental Services,Materials - General                     ,27/02/2012,D61/0027465,684.5
Lancaster City Council,30UH,HWM Surveyers Ltd,Health & Housing,Energy Performance Certificates         ,16/02/2012,1680,1320
Lancaster City Council,30UH,HWM Surveyers Ltd,Health & Housing,Energy Performance Certificates         ,16/02/2012,1681,1680
Lancaster City Council,30UH,Imperial Civil Enforcement Solutions Ltd,Property Services,Equipment Maintenance                   ,14/02/2012,20378,2777.19
Lancaster City Council,30UH,Inspirit Care Limited,Health & Housing,Contracted Services                     ,16/02/2012,9700015686,1025
Lancaster City Council,30UH,Instarmac Group PLC,Environmental Services,White Lund Stock                        ,23/02/2012,364526,3604.16
Lancaster City Council,30UH,J C Critchley Ltd,Environmental Services,R & M - General                         ,07/02/2012,784,2500
Lancaster City Council,30UH,J C Critchley Ltd,Environmental Services,Capital Payments To Contractors         ,10/02/2012,783,4509
Lancaster City Council,30UH,J C Critchley Ltd,Environmental Services,Capital Payments To Contractors         ,10/02/2012,785,3709
Lancaster City Council,30UH,J C Critchley Ltd,Environmental Services,R & M - General                         ,22/02/2012,786,1999.88
Lancaster City Council,30UH,J.P. Lennard Ltd,Community Engagement,Printing & Stationery                   ,16/02/2012,601721,592.46
Lancaster City Council,30UH,James Chambers (Timber Merchants) Ltd,Environmental Services,White Lund Stock                        ,17/02/2012,658201,1013.76
Lancaster City Council,30UH,Jewson Limited,Environmental Services,White Lund Stock                        ,15/02/2012,0333/0170174,1418.77
Lancaster City Council,30UH,Jewson Limited,Environmental Services,Materials - General                     ,27/02/2012,0333/0171007,553.35
Lancaster City Council,30UH,JNP Northern LLP,Property Services,R & M - Buildings                       ,07/02/2012,9844,665.44
Lancaster City Council,30UH,John Martin Enterprises Ltd,Regeneration and Policy,Services - General                      ,06/02/2012,01/12/2011,500
Lancaster City Council,30UH,John Wilding Ltd,Environmental Services,Purchase Of Vehicles Etc                ,08/02/2012,125960,11865
Lancaster City Council,30UH,Keppie Massie,Regeneration and Policy,Services - General                      ,09/02/2012,4667,6900
Lancaster City Council,30UH,Keyline Builders Merchant Ltd,Environmental Services,White Lund Stock                        ,23/02/2012,1316 ACY594,1172.6
Lancaster City Council,30UH,Kings Chambers,Regeneration and Policy,Planning Legal Costs                    ,03/02/2012,309980,3000
Lancaster City Council,30UH,Kings Chambers,Regeneration and Policy,Planning Legal Costs                    ,16/02/2012,309980,787.5
Lancaster City Council,30UH,Lancashire County Council,Health & Housing,Capital Grants                          ,02/02/2012,4600038857,2442
Lancaster City Council,30UH,Lancashire County Council,Health & Housing,Capital Grants                          ,02/02/2012,4600038859,2472
Lancaster City Council,30UH,Lancashire County Council,Health & Housing,Capital Grants                          ,02/02/2012,4600038860,1249
Lancaster City Council,30UH,Lancashire County Council,Health & Housing,Capital Grants                          ,02/02/2012,4600038862,2037
Lancaster City Council,30UH,Lancashire County Council,Health & Housing,Capital Grants                          ,02/02/2012,4600038866,5093
Lancaster City Council,30UH,Lancashire County Council,Health & Housing,Capital Grants                          ,02/02/2012,4600038868,4338
Lancaster City Council,30UH,Lancashire County Council,Health & Housing,Capital Payments To Contractors         ,08/02/2012,4600039917,792
Lancaster City Council,30UH,Lancashire County Council,Health & Housing,Capital Payments To Contractors         ,08/02/2012,4600039927,3910.05
Lancaster City Council,30UH,Lancashire County Council,Regeneration and Policy,Other Capital Expenditure               ,08/02/2012,4600040186,14180.97
Lancaster City Council,30UH,Lancashire County Council,Health & Housing,Capital Grants                          ,13/02/2012,4600038864,3122
Lancaster City Council,30UH,Lancashire County Council,Health & Housing,Capital Grants                          ,13/02/2012,4600039914,8495
Lancaster City Council,30UH,Lancashire County Council,Health & Housing,Capital Grants                          ,13/02/2012,4600039918,3676
Lancaster City Council,30UH,Lancashire County Council,Health & Housing,Capital Payments To Contractors         ,16/02/2012,4600040429,2046
Lancaster City Council,30UH,Lancashire County Council,Health & Housing,Capital Payments To Contractors         ,16/02/2012,4600040430,882
Lancaster City Council,30UH,Lancashire County Council,Health & Housing,Capital Grants                          ,20/02/2012,Inv. 4600039919,4072.02
Lancaster City Council,30UH,Lancashire County Council,Health & Housing,Capital Grants                          ,20/02/2012,Inv. 4600039923,2037
Lancaster City Council,30UH,Lancashire County Council,Governance,Land Charge Fees - L.C.C.               ,21/02/2012,4600040699,1389
Lancaster City Council,30UH,Lancashire County Council,Property Services,R & M Sites & Signs                     ,21/02/2012,4600040594,701.5
Lancaster City Council,30UH,Lancashire County Council,Property Services,Routine Maintenance                     ,21/02/2012,4600040592,1664.05
Lancaster City Council,30UH,Lancashire County Council,Property Services,Routine Maintenance                     ,21/02/2012,4600040593,1967.73
Lancaster City Council,30UH,Lancashire County Council,Community Engagement,Rent                                    ,23/02/2012,4800001193,600
Lancaster City Council,30UH,Lancashire County Council,Community Engagement,Rent                                    ,23/02/2012,4800001193,600
Lancaster City Council,30UH,Lancashire County Council,Community Engagement,Rent                                    ,23/02/2012,4800001193,550
Lancaster City Council,30UH,Lancashire County Council,Health & Housing,Capital Grants                          ,29/02/2012,4600038867,4524
Lancaster City Council,30UH,Lancashire County Council,Health & Housing,Capital Grants                          ,29/02/2012,4600039916,674
Lancaster City Council,30UH,Lancaster & District YMCA,Health & Housing,Homelessness Priority Need Order        ,09/02/2012,Homeless Ed Prog,10000
Lancaster City Council,30UH,Lancaster and Morecambe Cricket Development Group,Community Engagement,Services - General                      ,06/02/2012,30012012,600
Lancaster City Council,30UH,Lancaster CVS,Community Engagement,Grants                                  ,06/02/2012,190112,15500
Lancaster City Council,30UH,Lancaster Management Services T/A LaraNichols ,Community Engagement,Other Cleaning                          ,02/02/2012,4155,609.75
Lancaster City Council,30UH,Land Use Consultants Limited,Regeneration and Policy,Services - Consultants                  ,28/02/2012,40062,2500
Lancaster City Council,30UH,Let`s Play (Everywhere) Ltd,Environmental Services,Playground Improvements                 ,13/02/2012,LPE/SS1145,2642
Lancaster City Council,30UH,Liberty Services,Property Services,Printing & Stationery                   ,14/02/2012,78360,585
Lancaster City Council,30UH,Lingwood Security Management Limited,Property Services,Security Services                       ,10/02/2012,15432,6144
Lancaster City Council,30UH,Litfest,Community Engagement,Arts Development                        ,28/02/2012,136 Project Grant,2000
Lancaster City Council,30UH,Local Government Association,Financial Services,Services - Consultants                  ,09/02/2012,40123488,1921.83
Lancaster City Council,30UH,Local Government Association,Financial Services,Services - Consultants                  ,09/02/2012,40123488,6975.72
Lancaster City Council,30UH,M C & M A Stewart (Haulage) Ltd,Environmental Services,Playground Improvements                 ,28/02/2012,35633,606.48
Lancaster City Council,30UH,M D Hanafin & Sons Ltd,Health & Housing,R & M - Buildings                       ,09/02/2012,91502,573.43
Lancaster City Council,30UH,M D Hanafin & Sons Ltd,Health & Housing,Contracted Services                     ,16/02/2012,91503,611.91
Lancaster City Council,30UH,M D Hanafin & Sons Ltd,Health & Housing,Contracted Services                     ,20/02/2012,91497,862.7
Lancaster City Council,30UH,Magnet Limited,Environmental Services,Materials - General                     ,27/02/2012,158/139061,860
Lancaster City Council,30UH,Marsh Community Centre,Community Engagement,Community Development                   ,06/02/2012,214,3237.5
Lancaster City Council,30UH,Marshalls Mono Ltd,Environmental Services,R & M - General                         ,22/02/2012,ZJB0012639,690
Lancaster City Council,30UH,Middleton`s-Electrical Contractors,Community Engagement,R & M - Buildings                       ,01/02/2012,253/254/255/256/257,1150.69
Lancaster City Council,30UH,Middleton`s-Electrical Contractors,Community Engagement,Other Fixed Plant                       ,28/02/2012,264,2951.89
Lancaster City Council,30UH,Middleton`s-Electrical Contractors,Community Engagement,Other Fixed Plant                       ,28/02/2012,"265, 266 & 267",643.8
Lancaster City Council,30UH,Morecambe Bay Credit Union,Financial Services,Grants                                  ,09/02/2012,10/11 Q4,1641.19
Lancaster City Council,30UH,Morecambe FC Community Sports,Community Engagement,Equipment and Tools - General           ,21/02/2012,1942,500
Lancaster City Council,30UH,Morecambe Press Ltd,Health & Housing,Printing & Stationery                   ,02/02/2012,5248,3645
Lancaster City Council,30UH,Morgan Lambert Limited,Health & Housing,Contracted Services                     ,08/02/2012,11684,600
Lancaster City Council,30UH,Darren Forsyth Electrical Contractors,Health & Housing,Contracted Services                     ,02/02/2012,707,675
Lancaster City Council,30UH,MRL Services (NW) Ltd,Environmental Services,Materials - General                     ,06/02/2012,100971,520
Lancaster City Council,30UH,MRL Services (NW) Ltd,Environmental Services,Materials - General                     ,06/02/2012,100977,740
Lancaster City Council,30UH,N B Sharpe Joinery and Building Contractor,Health & Housing,Capital Grants                          ,29/02/2012,DFG,4552
Lancaster City Council,30UH,New Look Cleaning Services,Environmental Services,Materials - General                     ,22/02/2012,7616,2300
Lancaster City Council,30UH,Newclear Drains & Newlook Cleaning Services,Health & Housing,Contracted Services                     ,09/02/2012,7564,580
Lancaster City Council,30UH,Newclear Drains & Newlook Cleaning Services,Health & Housing,Contracted Services                     ,09/02/2012,7597,910
Lancaster City Council,30UH,Newclear Drains & Newlook Cleaning Services,Health & Housing,Contracted Services                     ,23/02/2012,7620,520
Lancaster City Council,30UH,Newclear Drains & Newlook Cleaning Services,Health & Housing,Contracted Services                     ,29/02/2012,7618,520
Lancaster City Council,30UH,NHS Lanarkshire,Governance,Services - Medical Fees                 ,20/02/2012,L10019283,1180
Lancaster City Council,30UH,NHS Lanarkshire,Governance,Services - Medical Fees                 ,21/02/2012,L10019190,1941.33
Lancaster City Council,30UH,Nobbs & Jones,Community Engagement,R & M - Buildings                       ,03/02/2012,sin001177,9478
Lancaster City Council,30UH,Nobbs & Jones,Community Engagement,R & M - Buildings                       ,14/02/2012,SIN001290,698
Lancaster City Council,30UH,Northgate Information Solutions UK Limited,Information Services,Electronic Document Management Workflow ,08/02/2012,91197327,24346.65
Lancaster City Council,30UH,Northgate Information Solutions UK Limited,Governance,Search Fees                             ,13/02/2012,91195841,640.51
Lancaster City Council,30UH,Northgate Information Solutions UK Limited,Governance,Search Fees                             ,21/02/2012,91198071,1434.5
Lancaster City Council,30UH,npower,Community Engagement,Electricity                             ,08/02/2012,LGUHC3JZ,6061.57
Lancaster City Council,30UH,npower,Property Services,Electricity                             ,08/02/2012,LGUHC3J2,1224.23
Lancaster City Council,30UH,npower,Property Services,Electricity                             ,09/02/2012,LGUHC3J5,2573.69
Lancaster City Council,30UH,npower,Property Services,Electricity                             ,10/02/2012,LGUHC3J3,3092.47
Lancaster City Council,30UH,npower,Property Services,Electricity                             ,10/02/2012,LGUHC3J4,1345.72
Lancaster City Council,30UH,npower,Property Services,Electricity                             ,10/02/2012,LGUHDHHL,1556.56
Lancaster City Council,30UH,npower,Property Services,Electricity                             ,13/02/2012,LGUHDHD7,1304.4
Lancaster City Council,30UH,npower,Community Engagement,Electricity                             ,14/02/2012,LGUHDHFC,599.71
Lancaster City Council,30UH,npower,Community Engagement,Electricity                             ,14/02/2012,LGUHDHFC,1799.14
Lancaster City Council,30UH,npower,Community Engagement,Electricity                             ,14/02/2012,LGUHDHX3,2293.43
Lancaster City Council,30UH,npower,Property Services,Electricity                             ,14/02/2012,LGUHC3J6,1338.53
Lancaster City Council,30UH,npower,Health & Housing,Electricity                             ,16/02/2012,LGUHDJBW,1333.98
Lancaster City Council,30UH,npower,Health & Housing,Electricity                             ,16/02/2012,LGUHDJBW,1461.1
Lancaster City Council,30UH,npower,Health & Housing,Electricity                             ,16/02/2012,LGUHDJBW,701.94
Lancaster City Council,30UH,npower,Health & Housing,Electricity                             ,16/02/2012,LGUHDJBW,1433.79
Lancaster City Council,30UH,npower,Health & Housing,Electricity                             ,16/02/2012,LGUHDJBW,2383.49
Lancaster City Council,30UH,npower,Environmental Services,Electricity                             ,21/02/2012,LGUHDHD9,1588.45
Lancaster City Council,30UH,NPS North West Ltd,Property Services,R & M - Buildings                       ,03/02/2012,SIN006153,4350
Lancaster City Council,30UH,NSL Limited,Property Services,Cash Collection Expenses                ,14/02/2012,11255,3329.48
Lancaster City Council,30UH,NSL Limited,Property Services,Contracted Services                     ,14/02/2012,11255,7210
Lancaster City Council,30UH,Olympia Commercial Cleaners,Environmental Services,Window Cleaning                         ,08/02/2012,20166,601.67
Lancaster City Council,30UH,Orion Security Print Ltd,Property Services,Printing & Stationery                   ,14/02/2012,19362,639.49
Lancaster City Council,30UH,Otis Ltd.,Property Services,R & M - Buildings                       ,14/02/2012,01003438E,974.34
Lancaster City Council,30UH,Otis Ltd.,Property Services,R & M - Buildings                       ,23/02/2012,RTS10101004,683
Lancaster City Council,30UH,Otis Ltd.,Property Services,R & M - Buildings                       ,28/02/2012,01006486E,974.34
Lancaster City Council,30UH,P.F.Cusack (Tools Supplies) Ltd.,Environmental Services,White Lund Stock                        ,17/02/2012,395386,584
Lancaster City Council,30UH,Parksafe (Systems) Ltd,Property Services,Parksafe                                ,14/02/2012,1546,10917.58
Lancaster City Council,30UH,PATROL,Property Services,Services - Legal Costs                  ,14/02/2012,2554,932.1
Lancaster City Council,30UH,PC Environmental Ltd,Health & Housing,Corporate Safety                        ,13/02/2012,7432,3527.5
Lancaster City Council,30UH,Pennine Flooring Supplies Ltd,Environmental Services,White Lund Stock                        ,15/02/2012,INV412372,1542.64
Lancaster City Council,30UH,Peter Savage Limited,Environmental Services,White Lund Stock                        ,22/02/2012,OP/I11574,1056
Lancaster City Council,30UH,PHS Group Plc,Property Services,R & M - Buildings                       ,28/02/2012,58308572A,1058.68
Lancaster City Council,30UH,PHS Group Plc,Property Services,Office Equipment                        ,29/02/2012,58404119,620
Lancaster City Council,30UH,Pinington Limited,Property Services,R & M - Buildings                       ,07/02/2012,1001503A,1027.11
Lancaster City Council,30UH,Pinington Limited,Property Services,R & M - Buildings                       ,07/02/2012,1001503B/2,1061.82
Lancaster City Council,30UH,Preston City Council,Community Engagement,Marketing & Promotion                   ,01/02/2012,1547630,932.04
Lancaster City Council,30UH,Preston City Council,Financial Services,Management Fees                         ,02/02/2012,1542839,4452
Lancaster City Council,30UH,Preston City Council,Financial Services,Management Fees                         ,15/02/2012,M56,176184.44
Lancaster City Council,30UH,Principal Pipe Organs,Property Services,Organs & Pianos                         ,23/02/2012,8985,576.18
Lancaster City Council,30UH,Print Image Network Ltd,Governance,Postages                                ,08/02/2012,A008250,939.59
Lancaster City Council,30UH,Print Image Network Ltd,Governance,Printing & Stationery                   ,08/02/2012,A008249,1356.39
Lancaster City Council,30UH,Print Image Network Ltd,Governance,Postages                                ,20/02/2012,A008288,1157.3
Lancaster City Council,30UH,Professional Lawns Ltd.,Environmental Services,Playground Improvements                 ,07/02/2012,45941,840
Lancaster City Council,30UH,Promenade Concert Orchestra,Community Engagement,Venue - Premises Hire Costs             ,01/02/2012,29012012,2293
Lancaster City Council,30UH,Purchase Power,Property Services,Postages                                ,07/02/2012,AE930718,1013
Lancaster City Council,30UH,Quartzelec Ltd,Property Services,R & M - Buildings                       ,07/02/2012,7034656,1360
Lancaster City Council,30UH,Quartzelec Ltd,Property Services,R & M - Buildings                       ,21/02/2012,7035068,747
Lancaster City Council,30UH,R Briggs & Son (Lancaster) Ltd,Health & Housing,Electrical Inspections                  ,16/02/2012,16087,6947.35
Lancaster City Council,30UH,Redwell Fisheries,Regeneration and Policy,Planning Legal Costs                    ,09/02/2012,anp/108/2/609,720
Lancaster City Council,30UH,Reed Business Information,Governance,Services - Consultants                  ,21/02/2012,DSINV00025748-1,2485
Lancaster City Council,30UH,Remploy Ltd ,Property Services,Contracted Services                     ,17/02/2012,SLS/80305043,10061.89
Lancaster City Council,30UH,Rentokil Initial UK Ltd,Community Engagement,R & M - Buildings                       ,17/02/2012,10660019,936.14
Lancaster City Council,30UH,Rentokil Initial UK Ltd,Property Services,R & M - Buildings                       ,22/02/2012,10664214,663.07
Lancaster City Council,30UH,Ricoh Ltd,Information Services,Printing\Copying Equipment              ,08/02/2012,10050149,6068.54
Lancaster City Council,30UH,Ricoh Ltd,Information Services,Printing\Copying Equipment              ,16/02/2012,86832676,6320.42
Lancaster City Council,30UH,Ricoh Ltd,Information Services,Printing\Copying Equipment              ,17/02/2012,86848507,753.1
Lancaster City Council,30UH,Rogerson HomeServe Plus Limited,Health & Housing,Capital Grants                          ,08/02/2012,DFG,3784.46
Lancaster City Council,30UH,Rogerson HomeServe Plus Limited,Health & Housing,Capital Grants                          ,13/02/2012,GRANT,5335.52
Lancaster City Council,30UH,S.M.P. (Playgrounds) Ltd,Environmental Services,Purchase Of Equipment                   ,28/02/2012,18949,5274
Lancaster City Council,30UH,Salt Sales Co.,Environmental Services,White Lund Stock                        ,23/02/2012,10098,1334.02
Lancaster City Council,30UH,Scanlans Consultant Surveyors LLP,Health & Housing,Contracted Services                     ,23/02/2012,TM/RH/SCS83185,600
Lancaster City Council,30UH,Serco Limited,Community Engagement,Service Training Budget                 ,09/02/2012,90667765,850
Lancaster City Council,30UH,SGM (UK) Limited,Environmental Services,Repair & Mtce Of Vehicles               ,07/02/2012,B30951,953.75
Lancaster City Council,30UH,Shorrocks Building Works,Health & Housing,Contracted Services                     ,06/02/2012,2965,510
Lancaster City Council,30UH,Shorrocks Building Works,Health & Housing,Contracted Services                     ,06/02/2012,2966,940
Lancaster City Council,30UH,Shorrocks Building Works,Health & Housing,Contracted Services                     ,06/02/2012,2966,690
Lancaster City Council,30UH,Shorrocks Building Works,Health & Housing,Contracted Services                     ,06/02/2012,2972,1270
Lancaster City Council,30UH,Shorrocks Building Works,Health & Housing,Contracted Services                     ,09/02/2012,2967,1050
Lancaster City Council,30UH,Shorrocks Building Works,Health & Housing,Contracted Services                     ,09/02/2012,2968,560
Lancaster City Council,30UH,Shorrocks Building Works,Health & Housing,Contracted Services                     ,20/02/2012,2975,1200
Lancaster City Council,30UH,Shorrocks Building Works,Health & Housing,Contracted Services                     ,20/02/2012,2975,550
Lancaster City Council,30UH,Shorrocks Building Works,Health & Housing,Contracted Services                     ,20/02/2012,2976,770
Lancaster City Council,30UH,Shorrocks Building Works,Health & Housing,Contracted Services                     ,29/02/2012,2977,540
Lancaster City Council,30UH,Shorrocks Building Works,Health & Housing,Contracted Services                     ,29/02/2012,2979,600
Lancaster City Council,30UH,Siemens Financial Services Ltd,Community Engagement,Equipment Operating Leases              ,06/02/2012,284/12/0063412,862.16
Lancaster City Council,30UH,Signs Express (Lancaster),Property Services,Fixtures & Fittings - General           ,06/02/2012,10986,649.23
Lancaster City Council,30UH,Silverdale Cycle Hire,Regeneration and Policy,Grants                                  ,01/02/2012,sch/sdf1,1166.66
Lancaster City Council,30UH,Silverdale Cycle Hire,Regeneration and Policy,Grants                                  ,15/02/2012,SCH/SDF2,1166.66
Lancaster City Council,30UH,SitexOrbis Limited,Regeneration and Policy,Security Services                       ,29/02/2012,R045989M,1231.08
Lancaster City Council,30UH,Stagecoach,Community Engagement,Stagecoach Tickets                      ,13/02/2012,13099,6298.94
Lancaster City Council,30UH,STM Environmental Ltd,Health & Housing,Services - Contaminated Land            ,13/02/2012,299,1300
Lancaster City Council,30UH,Stonewell Property Company Ltd,Property Services,Service Charges                         ,03/02/2012,AE1/Insurance/2012,825.73
Lancaster City Council,30UH,Stonewell Property Company Ltd,Property Services,Service Charges                         ,20/02/2012,ZNO/1-2011,-3469.22
Lancaster City Council,30UH,Storey Art Gallery Ltd,Community Engagement,Grants                                  ,06/02/2012,451,2600
Lancaster City Council,30UH,Storey Creative Industries Centre,Financial Services,Loan,03/02/2012,M54,90000
Lancaster City Council,30UH,Switchshop Limited,Information Services,R & M - Buildings                       ,15/02/2012,115317,2596
Lancaster City Council,30UH,T Brown & Son Ltd,Health & Housing,Capital Payments To Contractors         ,16/02/2012,572,1092
Lancaster City Council,30UH,T Jolly Services Ltd,Property Services,R & M - Buildings                       ,29/02/2012,INV2032647,735.6
Lancaster City Council,30UH,T Rodgers & Son,Health & Housing,Services - Works In Default             ,22/02/2012,,1160
Lancaster City Council,30UH,T T Carpets Ltd.,Community Engagement,R & M - Buildings                       ,16/02/2012,25596,870
Lancaster City Council,30UH,Tabs FM Ltd,Property Services,Software Purchase\Licences              ,16/02/2012,IV3995,2550
Lancaster City Council,30UH,Tarmac Ltd,Environmental Services,Materials - General                     ,06/02/2012,9027787144,539.78
Lancaster City Council,30UH,Tarmac Ltd,Environmental Services,Materials - General                     ,07/02/2012,9027804926,542.35
Lancaster City Council,30UH,Tarmac Ltd,Environmental Services,Materials - General                     ,07/02/2012,9027818139,524.36
Lancaster City Council,30UH,Tarmac Ltd,Environmental Services,Materials - General                     ,07/02/2012,9027818139A,533.36
Lancaster City Council,30UH,Tarmac Ltd,Environmental Services,Materials - General                     ,22/02/2012,9027855824,548.78
Lancaster City Council,30UH,Tarmac Ltd,Environmental Services,Materials - General                     ,22/02/2012,9027855825,521.79
Lancaster City Council,30UH,Team Northern Construction Ltd,Health & Housing,Capital Payments To Contractors         ,02/02/2012, Val 1,4544.53
Lancaster City Council,30UH,Team Northern Construction Ltd,Health & Housing,Capital Payments To Contractors         ,16/02/2012,Valuation2,9958.12
Lancaster City Council,30UH,Technology Forge,Property Services,Software Asset Management               ,02/02/2012,4257,10013
Lancaster City Council,30UH,The Bay,Community Engagement,Miscellaneous Advertising               ,06/02/2012,542360,602.33
Lancaster City Council,30UH,The Bay,Environmental Services,Printing & Stationery                   ,22/02/2012,CN847,2703
Lancaster City Council,30UH,The BSS Group PLC,Environmental Services,White Lund Stock                        ,22/02/2012,4193/083509,1409.76
Lancaster City Council,30UH,The Cast Iron Company Ltd,Regeneration and Policy,R & M - Sea & River / Promenade         ,20/02/2012,Dec-63,7545
Lancaster City Council,30UH,The James Mercer Group,Community Engagement,Other Fixed Plant                       ,27/02/2012,49869,632.05
Lancaster City Council,30UH,Storey Creative Industries Centre,Community Engagement,Rent                                    ,08/02/2012,1276,916.32
Lancaster City Council,30UH,Storey Creative Industries Centre,Community Engagement,Service Charges                         ,08/02/2012,1276,1038.88
Lancaster City Council,30UH,The Travellers Choice,Community Engagement,Central Transport - General             ,03/02/2012,49498,1278.4
Lancaster City Council,30UH,The Travellers Choice,Community Engagement,Central Transport - General             ,03/02/2012,49499,2040
Lancaster City Council,30UH,The Travellers Choice,Community Engagement,Central Transport - General             ,03/02/2012,49500,1330
Lancaster City Council,30UH,The Travellers Choice,Community Engagement,Central Transport - General             ,03/02/2012,49501,630
Lancaster City Council,30UH,T-Mobile (UK) Ltd.,Information Services,Mobile Telephones                       ,08/02/2012,V00815882945,1207.07
Lancaster City Council,30UH,TNT Post North Ltd,Property Services,Postages                                ,03/02/2012,144128,2420.8
Lancaster City Council,30UH,TNT Post North Ltd,Property Services,Postages                                ,07/02/2012,145000,1818.57
Lancaster City Council,30UH,TNT Post North Ltd,Property Services,Postages                                ,16/02/2012,145567,1576.45
Lancaster City Council,30UH,TNT Post North Ltd,Property Services,Postages                                ,29/02/2012,146664,1549.55
Lancaster City Council,30UH,TNT Post North Ltd,Property Services,Postages                                ,29/02/2012,146798,1469.68
Lancaster City Council,30UH,Total Gas and Power,Community Engagement,Gas                                     ,23/02/2012,13185,4132.1
Lancaster City Council,30UH,Total Gas and Power,Community Engagement,VAT Control                             ,23/02/2012,13185,826.42
Lancaster City Council,30UH,Trapeze Group (UK) Ltd,Environmental Services,Office Equipment                        ,21/02/2012,INV0076579,2200.8
Lancaster City Council,30UH,Tyrone Lewis General Building Contractors,Health & Housing,R & M - Buildings                       ,16/02/2012,TL-10022012,4519
Lancaster City Council,30UH,Tyrone Lewis General Building Contractors,Health & Housing,Capital Grants                          ,22/02/2012,DFG,10000
Lancaster City Council,30UH,United Utilities,Health & Housing,Water Services                          ,09/02/2012,403 136 9350,1293.18
Lancaster City Council,30UH,United Utilities,Health & Housing,Water Services                          ,09/02/2012,408 568 9830,936.04
Lancaster City Council,30UH,United Utilities,Property Services,Water Services                          ,21/02/2012,4082082900,598.44
Lancaster City Council,30UH,United Utilities,Community Engagement,Water Services                          ,23/02/2012,13187,2421.82
Lancaster City Council,30UH,University of Cumbria,Community Engagement,Grants                                  ,06/02/2012,9023234 / 80005889,750
Lancaster City Council,30UH,University of Cumbria,Community Engagement,Grants                                  ,06/02/2012,9023234 / 80005889,1275.5
Lancaster City Council,30UH,Valley View Pets Hotel,Health & Housing,Services - Kennelling                   ,13/02/2012,02-Dec,2778.74
Lancaster City Council,30UH,Valuation Office Agency,Property Services,Services - Consultants                  ,17/02/2012,2.50002E+13,4300
Lancaster City Council,30UH,Vertebrate Graphics Ltd,Regeneration and Policy,Printing & Stationery                   ,07/02/2012,8542,1439
Lancaster City Council,30UH,VPS (UK) Limited,Health & Housing,Contracted Services                     ,09/02/2012,648375,580
Lancaster City Council,30UH,West Coast Glass (Morecambe) Ltd,Environmental Services,Materials - General                     ,21/02/2012,19238S,722.1
Lancaster City Council,30UH,Westmorland Tree Care Ltd,Environmental Services,Materials - General                     ,29/02/2012,4842,2300
Lancaster City Council,30UH,Whinfield Study Trust,Community Engagement,Gas                                     ,17/02/2012,WH00105,843.6
Lancaster City Council,30UH,Whinfield Study Trust,Community Engagement,Water Services                          ,17/02/2012,WH00105,520.83
Lancaster City Council,30UH,Whittle Programmed Painting Ltd,Health & Housing,Rota Painting                           ,08/02/2012,SINV005262,47520.68
Lancaster City Council,30UH,Wildwood,Community Engagement,Services - Customer Insight             ,06/02/2012,310112,4475
Lancaster City Council,30UH,Worms Eye Limited,Regeneration and Policy,Capital Payments To Contractors         ,23/02/2012,WEL/11/132,510
Lancaster City Council,30UH,WYG Environment Planning Transport Ltd,Regeneration and Policy,Services - Consultants                  ,03/02/2012,777524,19011
Lancaster City Council,30UH,Zenith Survey Equipment Limited,Environmental Services,Service Training Budget                 ,07/02/2012,310307,990
Lancaster City Council,30UH,Zoeller Waste Systems Limited,Environmental Services,Purchase Of Vehicles Etc                ,29/02/2012,SI039984,40065
Lancaster City Council,30UH,Zoeller Waste Systems Limited,Environmental Services,Purchase Of Vehicles Etc                ,29/02/2012,SI039984,8837.5
Lancaster City Council,30UH,Zoeller Waste Systems Limited,Environmental Services,Purchase Of Vehicles Etc                ,29/02/2012,SI039984,41867
